bitfinex-derivatives/quotes_BTCF0:USTF0_20250506
["timestamp","ask_amount","ask_price","bid_price","bid_amount"]
[1746571513583,0.005,96127.0,96124.0,0.0520183]
[1746571513789,0.005,96127.0,96126.0,0.2080706]
[1746571514191,0.3608,96128.0,96127.0,0.2080684]
[1746571514591,0.3608,96128.0,96127.0,0.5323684]
[1746571514788,0.3608,96132.0,96131.0,0.2600743]
[1746571515187,0.3608,96132.0,96131.0,0.4380743]
[1746571515691,0.5688576,96132.0,96131.0,0.4580743]
[1746571515881,0.5688576,96132.0,96131.0,0.178]
[1746571516082,0.2080663,96128.0,96127.0,0.6479]
[1746571516291,0.2080663,96128.0,96127.0,0.1479]
[1746571516693,0.2399202,96128.0,96127.0,0.1479]
[1746571516893,0.4004202,96128.0,96127.0,0.1479]
[1746571517395,0.2080836,96120.0,96119.0,0.1504]
[1746571517696,0.3608,96120.0,96119.0,0.3584858]
[1746571518195,0.3608,96120.0,96119.0,0.5364858]
[1746571518403,0.3608,96120.0,96119.0,0.3284]
[1746571518693,0.5688836,96120.0,96119.0,0.178]
[1746571518888,0.6047375,96120.0,96119.0,0.178]
[1746571519292,0.2080879,96118.0,96117.0,0.1554]
[1746571519499,0.2399418,96118.0,96117.0,0.1554]
[1746571519889,0.052023,96116.0,96112.0,0.00156067]
[1746571520087,0.2399527,96113.0,96112.0,0.00156067]
[1746571520990,0.5485527,96113.0,96112.0,0.00156067]
[1746571521294,0.1780856,96096.0,96095.0,0.00104063]
[1746571521501,0.5707395,96096.0,96095.0,0.00104063]
[1746571522093,1.0628395,96096.0,96095.0,0.00104063]
[1746571523093,0.8848395,96096.0,96095.0,0.00104063]
[1746571523510,0.8848395,96096.0,96095.0,0.00204063]
[1746571524595,0.5280395,96096.0,96095.0,0.00104063]
[1746571525196,0.1906539,96096.0,96095.0,0.20917833]
[1746571525395,0.004,96096.0,96095.0,0.20917833]
[1746571526101,0.004,96096.0,96095.0,0.70817833]
[1746571526102,0.2121356,96096.0,96095.0,0.70817833]
[1746571526307,0.2121356,96096.0,96095.0,0.72817833]
[1746571526602,0.004,96096.0,96095.0,1.22817833]
[1746571526991,0.2439895,96096.0,96095.0,0.69904063]
[1746571527194,0.6037895,96096.0,96095.0,0.67904063]
[1746571527705,0.7486895,96096.0,96095.0,0.67904063]
[1746571527903,0.7516895,96096.0,96095.0,0.17904063]
[1746571528200,0.2081273,96104.0,96103.0,0.2081095]
[1746571528599,0.2081273,96104.0,96103.0,0.2601383]
[1746571528996,0.2081273,96104.0,96103.0,0.2081095]
[1746571529397,0.3560273,96104.0,96103.0,0.2081095]
[1746571529892,0.3610273,96104.0,96103.0,0.2081095]
[1746571530094,0.3610273,96104.0,96103.0,0.5096095]
[1746571530601,0.3560273,96104.0,96103.0,0.5096095]
[1746571530802,0.3600273,96104.0,96103.0,0.5096095]
[1746571531701,0.7208273,96104.0,96103.0,0.5096095]
[1746571534308,0.004,96104.0,96103.0,0.5296095]
[1746571534611,0.004,96104.0,96103.0,0.5196095]
[1746571535205,0.2121182,96104.0,96103.0,1.1976095]
[1746571535412,0.2121182,96104.0,96103.0,0.9795]
[1746571535910,0.2121182,96104.0,96103.0,0.8297]
[1746571536211,0.2121182,96104.0,96103.0,0.6517]
[1746571536806,0.2121182,96104.0,96103.0,0.1517]
[1746571537809,0.3747182,96104.0,96103.0,0.1517]
[1746571538106,0.0520313,96101.0,96095.0,0.00104063]
[1746571538413,0.5689356,96096.0,96095.0,0.00104063]
[1746571538607,0.6007895,96096.0,96095.0,0.00104063]
[1746571538807,0.9212895,96096.0,96095.0,0.00104063]
[1746571539509,0.9232895,96096.0,96095.0,0.00104063]
[1746571542007,0.9232895,96096.0,96095.0,3e-08]
[1746571542315,0.2400068,96088.0,96087.0,6e-08]
[1746571542511,0.6008068,96088.0,96087.0,6e-08]
[1746571542718,0.0520463,96074.0,96067.0,0.1513]
[1746571543008,0.0838976,96078.0,96061.0,0.1530117]
[1746571543009,0.2082006,96066.0,96061.0,0.1530117]
[1746571543209,0.2400545,96066.0,96062.0,0.1655]
[1746571543810,0.2400631,96062.0,96061.0,0.1119885]
[1746571544009,0.2400631,96062.0,96061.0,0.0506553]
[1746571544213,0.2082222,96056.0,96055.0,0.20442112]
[1746571544403,0.6008761,96056.0,96055.0,0.20442112]
[1746571544903,0.5690222,96056.0,96055.0,0.76675352]
[1746571545105,0.3608,96068.0,96055.0,0.49458112]
[1746571545308,0.2082222,96056.0,96055.0,0.38242112]
[1746571545509,0.6008761,96056.0,96055.0,0.38242112]
[1746571546208,0.6008761,96056.0,96055.0,0.20542112]
[1746571546410,0.7570761,96056.0,96055.0,0.001]
[1746571546709,0.2082287,96053.0,96052.0,0.1617]
[1746571547013,0.5998826,96053.0,96052.0,0.1617]
[1746571548810,0.5998826,96053.0,96052.0,0.1627]
[1746571549009,0.5680287,96053.0,96052.0,0.1627]
[1746571550205,0.5680287,96053.0,96052.0,0.001]
[1746571550405,0.5998826,96053.0,96052.0,0.001]
[1746571557014,0.5998826,96053.0,96052.0,0.2092309]
[1746571557015,0.5680287,96053.0,96052.0,0.2092309]
[1746571557323,0.5680287,96053.0,96052.0,0.3872309]
[1746571557625,0.2072287,96053.0,96052.0,0.3872309]
[1746571558019,0.5680287,96053.0,96052.0,0.7003309]
[1746571558217,0.3224386,96053.0,96052.0,0.7003309]
[1746571558525,0.3608,96102.0,96094.0,0.2081399]
[1746571558722,0.3608,96102.0,96094.0,0.2981399]
[1746571558918,0.3608,96102.0,96095.0,0.2081377]
[1746571559114,0.3608,96102.0,96095.0,0.6361377]
[1746571559320,0.3608,96102.0,96095.0,0.4761377]
[1746571559620,0.3608,96111.0,96110.0,0.2081052]
[1746571559920,0.3608,96111.0,96110.0,0.2181052]
[1746571560219,0.3608,96111.0,96110.0,0.8961052]
[1746571560425,0.2080801,96122.0,96110.0,1.05648315]
[1746571560616,0.2080801,96122.0,96121.0,0.208079]
[1746571560817,0.001,96126.0,96125.0,0.2080728]
[1746571561216,0.0328539,96126.0,96125.0,0.2080728]
[1746571561412,0.001,96126.0,96125.0,0.2080728]
[1746571562122,0.001,96126.0,96125.0,0.3860728]
[1746571562325,0.01,96126.0,96125.0,0.4070728]
[1746571562627,0.00156209,96155.0,96125.0,0.8518576]
[1746571562823,0.1657,96151.0,96147.0,0.2080241]
[1746571563025,0.0318539,96145.0,96142.0,0.12131809]
[1746571563326,0.0318539,96145.0,96144.0,0.178]
[1746571563327,0.5688295,96145.0,96144.0,0.178]
[1746571563718,0.6006834,96145.0,96144.0,0.178]
[1746571564130,0.2080425,96139.0,96138.0,0.2080436]
[1746571564319,0.2398964,96139.0,96138.0,0.2080436]
[1746571564521,0.0318539,96139.0,96138.0,0.2080436]
[1746571565219,0.2398964,96139.0,96138.0,0.3860436]
[1746571565628,0.2398964,96139.0,96138.0,0.178]
[1746571566029,0.2398964,96139.0,96138.0,0.5411446]
[1746571566729,0.2398964,96139.0,96138.0,0.3331]
[1746571566929,0.2398964,96139.0,96138.0,0.5411446]
[1746571570727,0.0318539,96139.0,96138.0,0.5611446]
[1746571571224,0.0318539,96139.0,96138.0,0.5411446]
[1746571571425,0.20957879,96155.0,96138.0,0.3331]
[1746571571625,0.00156209,96155.0,96152.0,0.0520031]
[1746571571831,0.00156209,96155.0,96154.0,0.20801]
[1746571572027,0.00156209,96155.0,96154.0,0.51651]
[1746571572623,0.00956209,96155.0,96154.0,0.51651]
[1746571573019,0.00956209,96155.0,96154.0,0.52847256]
[1746571573222,0.00956209,96155.0,96154.0,0.70747256]
[1746571573622,0.00956209,96155.0,96154.0,0.69551]
[1746571573830,0.00956209,96155.0,96154.0,1.19551]
[1746571574733,0.00856209,96155.0,96154.0,1.19451]
[1746571574926,0.00856209,96155.0,96154.0,1.28423]
[1746571575231,0.00156209,96155.0,96154.0,1.29612572]
[1746571575430,0.00856209,96155.0,96154.0,1.29612572]
[1746571578131,0.21656999,96155.0,96154.0,1.28423]
[1746571578926,0.21456999,96155.0,96154.0,1.28423]
[1746571580928,0.24642389,96155.0,96154.0,0.678]
[1746571581125,0.9223239,96155.0,96154.0,0.5]
[1746571581331,1.0866239,96155.0,96154.0,0.5]
[1746571581733,0.2080338,96143.0,96142.0,0.2080354]
[1746571582230,0.2080338,96143.0,96142.0,0.3860354]
[1746571582829,0.2080338,96143.0,96142.0,0.5418354]
[1746571583030,0.2100338,96143.0,96142.0,0.5418354]
[1746571583231,0.2100338,96143.0,96142.0,0.3338]
[1746571583431,0.3649338,96143.0,96142.0,0.178]
[1746571583627,0.3967877,96143.0,96142.0,0.178]
[1746571583833,0.2080425,96139.0,96138.0,0.0156]
[1746571584039,0.443136,96139.0,96112.0,0.00156067]
[1746571584233,0.2080988,96113.0,96112.0,0.05156067]
[1746571584436,0.2080988,96113.0,96112.0,0.25966157]
[1746571584733,0.0838779,96115.0,96112.0,0.25966157]
[1746571584734,0.1614,96114.0,96113.0,0.2080988]
[1746571584939,0.0318539,96117.0,96116.0,0.2080923]
[1746571585136,0.2080845,96120.0,96119.0,0.2080836]
[1746571585335,0.2080845,96120.0,96119.0,0.3638836]
[1746571585638,0.2080845,96120.0,96119.0,0.5298836]
[1746571585837,0.0520215,96119.0,96113.0,0.178]
[1746571586031,0.2080944,96115.0,96114.0,0.1543]
[1746571586226,0.2050944,96115.0,96114.0,0.5283966]
[1746571586437,0.3672944,96115.0,96114.0,0.5283966]
[1746571587033,0.3672944,96115.0,96114.0,1.0283966]
[1746571587229,0.3672944,96115.0,96114.0,0.9983]
[1746571587435,0.5195944,96115.0,96114.0,0.8323]
[1746571587837,0.5185944,96115.0,96114.0,1.0403966]
[1746571588236,0.5195944,96115.0,96114.0,1.0403966]
[1746571588436,0.001,96115.0,96114.0,1.0403966]
[1746571589545,0.2090944,96115.0,96114.0,1.0403966]
[1746571589735,0.2100944,96115.0,96114.0,0.678]
[1746571590346,0.4055483,96115.0,96114.0,0.678]
[1746571591240,0.4055483,96115.0,96114.0,0.5]
[1746571592237,0.2080988,96113.0,96112.0,0.00156067]
[1746571592444,0.6007527,96113.0,96112.0,0.00156067]
[1746571593143,0.6007527,96113.0,96112.0,0.17956067]
[1746571593733,0.3926539,96113.0,96112.0,0.17956067]
[1746571593938,0.6007527,96113.0,96112.0,0.17956067]
[1746571594341,0.6017527,96113.0,96112.0,0.17956067]
[1746571598849,0.2409527,96113.0,96112.0,0.17956067]
[1746571599049,0.6017527,96113.0,96112.0,0.17956067]
[1746571599751,0.2081356,96096.0,96095.0,0.00104063]
[1746571599935,0.6007895,96096.0,96095.0,0.00104063]
[1746571600245,0.9615895,96096.0,96095.0,0.00104063]
[1746571600449,0.2081746,96078.0,96077.0,0.20973684]
[1746571600647,0.5689746,96078.0,96077.0,0.20973684]
[1746571601144,0.8770746,96078.0,96077.0,0.38773684]
[1746571601341,0.8750746,96078.0,96077.0,0.38773684]
[1746571601541,0.3608,96078.0,96077.0,0.40738821]
[1746571601737,0.2601829,96092.0,96091.0,0.2081399]
[1746571602152,0.2601829,96092.0,96091.0,0.3861399]
[1746571602355,0.2601829,96092.0,96091.0,0.178]
[1746571602650,0.2920368,96092.0,96091.0,0.178]
[1746571603039,0.2920368,96092.0,96091.0,0.181]
[1746571603252,0.6001368,96092.0,96091.0,0.003]
[1746571603546,0.6885368,96092.0,96091.0,0.003]
[1746571603752,1.0493368,96092.0,96091.0,0.003]
[1746571604146,1.0493368,96092.0,96091.0,0.181]
[1746571604548,1.0513368,96092.0,96091.0,0.178]
[1746571604957,1.15540481,96092.0,96091.0,0.178]
[1746571605148,0.2081746,96078.0,96072.0,0.1512]
[1746571605349,0.2400285,96078.0,96077.0,0.21746461]
[1746571605655,0.2081746,96078.0,96077.0,0.21746461]
[1746571606157,0.2081746,96078.0,96077.0,0.39546461]
[1746571606358,0.2081746,96078.0,96077.0,0.71056461]
[1746571606556,0.002,96092.0,96082.0,0.0520409]
[1746571606759,0.2601906,96090.0,96089.0,0.2081464]
[1746571607558,0.2601906,96090.0,96089.0,0.5180464]
[1746571608253,0.2611906,96090.0,96089.0,0.6960464]
[1746571608850,0.2611906,96090.0,96089.0,1.1960464]
[1746571610657,0.2611906,96090.0,96089.0,0.9879]
[1746571611254,0.2611906,96090.0,96089.0,0.4879]
[1746571611970,0.2611906,96090.0,96089.0,0.6960507]
[1746571612962,0.2611906,96090.0,96089.0,0.4879]
[1746571613357,0.2930445,96090.0,96089.0,0.4879]
[1746571613554,0.2930445,96090.0,96089.0,0.3342]
[1746571614562,0.2930445,96090.0,96089.0,0.178]
[1746571615158,0.2081594,96087.0,96086.0,0.0520392]
[1746571615361,0.2081594,96087.0,96086.0,0.2601964]
[1746571616061,0.2081522,96089.0,96088.0,0.2081529]
[1746571616261,0.001,96090.0,96089.0,0.2081507]
[1746571616471,0.001,96090.0,96089.0,0.2281507]
[1746571616658,0.2091486,96090.0,96089.0,0.2281507]
[1746571616966,0.2091551,96087.0,96086.0,0.3861572]
[1746571617557,0.2081551,96087.0,96086.0,0.3861572]
[1746571618659,0.2091551,96087.0,96086.0,0.3861572]
[1746571618963,0.241009,96087.0,96086.0,0.8861572]
[1746571619263,0.241009,96087.0,96086.0,0.678]
[1746571620055,0.34508101,96087.0,96086.0,0.678]
[1746571620272,0.2081746,96078.0,96077.0,0.00928791]
[1746571620471,0.2400285,96078.0,96077.0,0.00928791]
[1746571621057,0.5599285,96078.0,96077.0,0.18728791]
[1746571621968,0.5599285,96078.0,96077.0,0.18056124]
[1746571622164,0.9207285,96078.0,96077.0,0.00256124]
[1746571623668,0.2082006,96066.0,96065.0,0.00104096]
[1746571623864,0.6008545,96066.0,96065.0,0.00104096]
[1746571625060,0.6018545,96066.0,96065.0,0.00104096]
[1746571626372,0.6018545,96066.0,96065.0,0.00901677]
[1746571627376,0.6018545,96066.0,96065.0,0.00104096]
[1746571629268,0.6018545,96066.0,96065.0,0.17904096]
[1746571629663,0.6018545,96066.0,96055.0,0.2082228]
[1746571629664,0.5205121,96065.0,96035.0,0.00104128]
[1746571629874,0.2082417,96047.0,96040.0,0.0117524]
[1746571630174,0.2082504,96043.0,96042.0,0.20981371]
[1746571630367,0.2082504,96043.0,96042.0,0.10156181]
[1746571630565,0.3608,96048.0,96042.0,0.00156181]
[1746571630761,0.2082328,96054.0,96053.0,0.0520566]
[1746571631075,0.0520467,96073.0,96053.0,0.514108]
[1746571631381,0.2081984,96069.0,96068.0,0.2081946]
[1746571631671,0.2602473,96069.0,96068.0,0.2081946]
[1746571631869,0.6210473,96069.0,96068.0,0.21989977]
[1746571632070,0.6210473,96069.0,96068.0,0.41789977]
[1746571632272,0.5689984,96069.0,96068.0,0.40556708]
[1746571632874,0.5689984,96069.0,96068.0,0.18566731]
[1746571633172,0.6008523,96069.0,96068.0,0.18566731]
[1746571633369,0.9171523,96069.0,96068.0,0.18566731]
[1746571633873,0.9171523,96069.0,96068.0,0.68566731]
[1746571634267,0.9191523,96069.0,96068.0,0.50766731]
[1746571634765,0.9191523,96069.0,96068.0,0.5]
[1746571635277,0.7258984,96069.0,96068.0,0.00787439]
[1746571635471,0.2082027,96067.0,96064.0,0.0520509]
[1746571635773,0.5709967,96069.0,96068.0,0.2081962]
[1746571635972,0.5709967,96069.0,96068.0,0.21585349]
[1746571636173,0.5709967,96069.0,96068.0,0.39385349]
[1746571636878,0.5709967,96069.0,96068.0,0.89385349]
[1746571637375,0.3628,96069.0,96068.0,1.05315349]
[1746571637576,0.002,96069.0,96068.0,1.05315349]
[1746571637878,0.002,96069.0,96068.0,1.08315349]
[1746571638064,0.2101941,96069.0,96068.0,1.08315349]
[1746571638267,0.002,96069.0,96068.0,1.08315349]
[1746571639175,0.002,96069.0,96068.0,1.18724549]
[1746571639375,0.00156245,96098.0,96094.0,0.2081399]
[1746571639573,0.00156245,96098.0,96094.0,0.3281399]
[1746571639877,0.2096377,96095.0,96094.0,0.3081399]
[1746571640081,0.2096377,96095.0,96094.0,0.4861399]
[1746571640376,0.0015,96095.0,96094.0,0.4861399]
[1746571640878,0.0075,96095.0,96094.0,0.4861399]
[1746571641081,0.0075,96095.0,96094.0,0.6461399]
[1746571641581,0.0075,96095.0,96094.0,0.3861399]
[1746571642173,0.6082916,96095.0,96094.0,0.178]
[1746571642377,0.9366916,96095.0,96094.0,0.178]
[1746571642980,0.9326916,96095.0,96094.0,0.178]
[1746571643185,0.7691916,96095.0,96094.0,0.2081399]
[1746571643474,0.4083916,96095.0,96094.0,0.2081399]
[1746571643680,0.7691916,96095.0,96094.0,0.3660399]
[1746571644178,0.7691916,96095.0,96094.0,0.5440399]
[1746571644877,0.7691916,96095.0,96094.0,1.0440399]
[1746571646679,0.5724377,96095.0,96094.0,1.0440399]
[1746571647083,0.7635916,96095.0,96094.0,0.8359]
[1746571647380,0.7635916,96095.0,96094.0,0.3359]
[1746571647681,0.7635916,96095.0,96094.0,0.5440399]
[1746571647881,0.5724377,96095.0,96094.0,0.6957399]
[1746571648877,0.6042916,96095.0,96094.0,1.1957399]
[1746571649078,0.9169916,96095.0,96094.0,0.678]
[1746571650081,0.9169916,96095.0,96094.0,0.5]
[1746571650279,0.2081637,96083.0,96082.0,0.2081653]
[1746571650478,0.5689637,96083.0,96082.0,0.5186653]
[1746571650673,0.6008176,96083.0,96082.0,0.3105]
[1746571650878,0.2602232,96077.0,96076.0,0.2081789]
[1746571651081,0.2920749,96077.0,96076.0,0.178]
[1746571651775,0.2082244,96055.0,96044.0,0.20442112]
[1746571651971,0.2082374,96049.0,96048.0,0.1493]
[1746571652385,0.2400913,96049.0,96048.0,0.36941067]
[1746571652578,0.2400913,96049.0,96048.0,0.3575396]
[1746571652778,0.2400913,96049.0,96048.0,0.15728553]
[1746571653078,0.2082374,96049.0,96048.0,0.54352513]
[1746571653280,0.2082374,96049.0,96048.0,0.54952513]
[1746571654389,0.2082374,96049.0,96048.0,0.34128553]
[1746571654886,0.2400913,96049.0,96048.0,0.18898553]
[1746571656583,0.0520562,96055.0,96052.0,0.2082266]
[1746571656888,0.20823,96053.0,96052.0,0.2082266]
[1746571657087,0.20823,96053.0,96052.0,0.3862266]
[1746571657988,0.2082224,96056.0,96055.0,0.2602757]
[1746571658285,0.2082224,96056.0,96055.0,0.4382757]
[1746571659390,0.3608,96058.0,96057.0,0.2082201]
[1746571660093,0.3608,96058.0,96057.0,0.3862201]
[1746571660678,0.3608,96058.0,96057.0,0.8862201]
[1746571662784,0.5212,96076.0,96075.0,0.2081811]
[1746571663292,0.5212,96076.0,96075.0,0.3861811]
[1746571664394,0.5242,96076.0,96075.0,0.3861811]
[1746571664695,0.5242,96076.0,96075.0,0.8861811]
[1746571665295,0.1604,96076.0,96075.0,0.8861811]
[1746571665493,0.001,96076.0,96075.0,1.1061811]
[1746571665694,0.1652,96103.0,96094.0,0.2081399]
[1746571665890,0.1558,96099.0,96094.0,0.2981399]
[1746571666198,0.0333539,96095.0,96094.0,0.4761399]
[1746571666393,0.1891539,96095.0,96094.0,0.4761399]
[1746571667099,0.3478539,96095.0,96094.0,0.4761399]
[1746571667291,0.3508539,96095.0,96094.0,0.3861399]
[1746571667801,0.3478539,96095.0,96094.0,0.3861399]
[1746571667998,0.3498539,96095.0,96094.0,0.3861399]
[1746571669903,0.0035,96095.0,96094.0,0.9802039]
[1746571670096,0.1612,96120.0,96119.0,0.2080858]
[1746571670298,0.3248,96120.0,96119.0,0.2080858]
[1746571670502,0.3566539,96120.0,96119.0,0.2080858]
[1746571670700,0.1930539,96120.0,96119.0,0.2080858]
[1746571671196,0.1612,96120.0,96119.0,0.3860858]
[1746571671394,0.001,96126.0,96125.0,0.2080728]
[1746571671800,0.001,96126.0,96125.0,0.4380728]
[1746571672194,0.001,96126.0,96125.0,0.6160728]
[1746571672399,0.3608,96154.0,96129.0,0.2080641]
[1746571672601,0.1509,96140.0,96129.0,0.6280641]
[1746571673205,0.1509,96140.0,96129.0,0.8060641]
[1746571674206,0.1509,96140.0,96129.0,0.3860641]
[1746571674207,0.3608,96135.0,96129.0,0.3860641]
[1746571674512,0.2080551,96134.0,96129.0,0.3860641]
[1746571674813,0.0045,96130.0,96129.0,0.3860641]
[1746571675011,0.0045,96130.0,96129.0,0.178]
[1746571675406,0.0045,96130.0,96129.0,0.3860641]
[1746571675709,0.0045,96130.0,96129.0,0.678]
[1746571675710,0.2125619,96130.0,96129.0,0.678]
[1746571677100,0.0045,96130.0,96129.0,0.8860641]
[1746571677299,0.0045,96130.0,96129.0,1.0360641]
[1746571678612,0.0045,96130.0,96129.0,1.0460641]
[1746571679004,0.5733619,96130.0,96129.0,0.688]
[1746571679207,0.6052158,96130.0,96129.0,0.678]
[1746571679710,0.2444158,96130.0,96129.0,0.678]
[1746571679906,0.6052158,96130.0,96129.0,0.678]
[1746571680223,0.6052158,96130.0,96129.0,0.5]
[1746571680718,0.2080706,96126.0,96125.0,0.00786164]
[1746571680911,0.2080771,96123.0,96122.0,0.2080778]
[1746571681102,0.3613742,96125.0,96113.0,0.0520245]
[1746571681301,0.1533,96125.0,96124.0,0.2080749]
[1746571681613,0.0045,96130.0,96129.0,0.2080641]
[1746571681813,0.0015,96130.0,96129.0,0.4180641]
[1746571682208,0.0015,96130.0,96129.0,0.5960641]
[1746571684424,0.0015,96130.0,96129.0,1.0960641]
[1746571687013,0.0015,96130.0,96129.0,0.9660641]
[1746571687618,0.0015,96130.0,96129.0,1.1060641]
[1746571688218,0.0015,96130.0,96129.0,0.9660641]
[1746571693420,0.208008,96155.0,96154.0,0.2080079]
[1746571693623,0.1633,96155.0,96154.0,0.2080079]
[1746571694123,0.1633,96155.0,96154.0,0.5504079]
[1746571694509,0.2090057,96156.0,96155.0,0.2080079]
[1746571694713,0.2090057,96156.0,96155.0,0.22927307]
[1746571695319,0.2090057,96156.0,96155.0,0.40727307]
[1746571695713,0.21753855,96175.0,96155.0,1.06406517]
[1746571695916,0.2079817,96168.0,96167.0,0.2079771]
[1746571696117,0.2079817,96168.0,96167.0,0.4059771]
[1746571696522,0.2079755,96170.0,96169.0,0.2599671]
[1746571696726,0.2079755,96170.0,96169.0,0.2079732]
[1746571697118,0.2079755,96170.0,96169.0,0.3859732]
[1746571697923,0.2159755,96170.0,96169.0,0.3859732]
[1746571698426,0.2159755,96170.0,96169.0,0.178]
[1746571698829,0.3758755,96170.0,96169.0,0.178]
[1746571699124,0.2079819,96167.0,96166.0,0.2079828]
[1746571699326,0.5687819,96167.0,96166.0,0.2079828]
[1746571699920,0.6835,96167.0,96166.0,0.2079828]
[1746571700133,0.1628,96167.0,96166.0,0.2079828]
[1746571700511,0.1698,96167.0,96166.0,0.3766828]
[1746571701127,0.1698,96167.0,96166.0,0.5546828]
[1746571701328,0.3777819,96167.0,96166.0,1.0546828]
[1746571701822,0.1698,96167.0,96166.0,1.06244993]
[1746571702729,0.3777819,96167.0,96166.0,1.06244993]
[1746571704222,0.1698,96167.0,96166.0,1.06244993]
[1746571705329,0.007,96167.0,96166.0,1.06244993]
[1746571708032,0.2149819,96167.0,96166.0,1.06244993]
[1746571708232,0.007,96167.0,96166.0,1.06244993]
[1746571709635,0.1585,96167.0,96166.0,1.06244993]
[1746571710137,0.3664819,96167.0,96166.0,1.06244993]
[1746571711237,0.1585,96167.0,96166.0,1.06244993]
[1746571711722,0.3664819,96167.0,96166.0,1.06244993]
[1746571712540,0.3664819,96167.0,96166.0,1.05244993]
[1746571712938,0.1585,96167.0,96166.0,1.05244993]
[1746571713334,0.5687624,96176.0,96175.0,0.2079646]
[1746571713532,0.3740495,96182.0,96181.0,0.2079516]
[1746571714848,0.3740495,96182.0,96181.0,0.2089516]
[1746571715036,0.3840495,96182.0,96181.0,0.2089516]
[1746571716233,0.1761,96182.0,96181.0,0.2089516]
[1746571716434,0.3840495,96182.0,96181.0,0.2089516]
[1746571716641,0.1761,96182.0,96181.0,0.2089516]
[1746571717133,0.1761,96182.0,96181.0,0.3869516]
[1746571718235,0.01,96182.0,96181.0,0.3869516]
[1746571718437,0.01,96182.0,96181.0,1.0469516]
[1746571718634,0.01,96182.0,96181.0,1.0269516]
[1746571718838,0.001,96186.0,96185.0,0.207943]
[1746571719036,0.001,96186.0,96185.0,0.748743]
[1746571719935,0.2089408,96186.0,96185.0,0.748743]
[1746571720136,0.005,96186.0,96185.0,0.926743]
[1746571720646,0.005,96186.0,96185.0,1.426743]
[1746571721235,0.2598949,96198.0,96197.0,0.2079149]
[1746571721557,0.2166752,96205.0,96199.0,0.2079127]
[1746571721742,0.3144106,96200.0,96199.0,0.2079127]
[1746571722045,0.2079192,96197.0,96196.0,0.2079183]
[1746571722241,0.2599065,96195.0,96194.0,0.2079222]
[1746571722739,0.2079278,96192.0,96188.0,0.08764]
[1746571722943,0.2079322,96190.0,96189.0,0.207934]
[1746571723139,0.2079322,96190.0,96189.0,0.217934]
[1746571723441,0.2079322,96190.0,96189.0,0.385934]
[1746571724043,0.2079322,96190.0,96189.0,0.178]
[1746571724240,0.2599409,96184.0,96183.0,0.2079464]
[1746571724834,0.2599409,96184.0,96183.0,0.7079464]
[1746571725237,0.2599409,96184.0,96183.0,0.8859464]
[1746571725439,0.2079537,96184.0,96183.0,0.8859464]
[1746571726952,0.2079414,96186.0,96185.0,0.2079408]
[1746571727243,0.2079414,96186.0,96185.0,0.3859408]
[1746571727448,0.3119054,96186.0,96185.0,0.178]
[1746571727645,0.5619054,96186.0,96185.0,0.178]
[1746571727866,0.2079819,96167.0,96166.0,0.00776713]
[1746571728047,0.2079862,96165.0,96164.0,0.15516769]
[1746571728346,0.3119742,96165.0,96164.0,0.15516769]
[1746571728537,0.2080014,96158.0,96155.0,0.00103998]
[1746571728742,0.9063614,96158.0,96155.0,0.00103998]
[1746571728942,1.0103574,96158.0,96155.0,0.00103998]
[1746571729252,1.1883574,96158.0,96157.0,0.1798224]
[1746571729553,1.1883574,96158.0,96157.0,0.17210712]
[1746571729859,0.9383574,96158.0,96157.0,0.17210712]
[1746571730737,0.2030057,96156.0,96155.0,0.00103998]
[1746571731250,0.48500571,96156.0,96155.0,0.00103998]
[1746571731550,0.81190571,96156.0,96155.0,0.00103998]
[1746571732153,0.7079057,96156.0,96155.0,0.00103998]
[1746571732447,0.81190571,96156.0,96155.0,0.00103998]
[1746571733241,0.81190571,96156.0,96155.0,0.00503998]
[1746571733742,0.81190571,96156.0,96155.0,0.00103998]
[1746571734446,0.7079057,96156.0,96155.0,0.00103998]
[1746571735355,0.63390571,96156.0,96155.0,0.00103998]
[1746571736244,0.81190571,96156.0,96155.0,0.00103998]
[1746571736854,0.81190571,96156.0,96155.0,0.00403998]
[1746571737154,0.5299057,96156.0,96155.0,0.00403998]
[1746571737554,0.5299057,96156.0,96155.0,0.00103998]
[1746571737851,0.63390571,96156.0,96155.0,0.00103998]
[1746571738245,0.81190571,96156.0,96155.0,0.00103998]
[1746571739250,0.3713057,96156.0,96155.0,0.00103998]
[1746571740156,0.47530571,96156.0,96155.0,8e-08]
[1746571740354,0.3713057,96156.0,96155.0,8e-08]
[1746571740556,0.2030057,96156.0,96155.0,8e-08]
[1746571740748,0.2030057,96156.0,96155.0,0.00200008]
[1746571740951,0.2030057,96156.0,96155.0,0.16520008]
[1746571741151,0.3608,96178.0,96155.0,1.05720008]
[1746571741357,0.2079884,96166.0,96165.0,0.2599683]
[1746571742048,0.2079884,96166.0,96165.0,0.5835683]
[1746571742248,0.2599767,96171.0,96170.0,0.2079732]
[1746571743056,0.2599795,96168.0,96167.0,0.2079801]
[1746571743253,0.2079841,96166.0,96165.0,0.3236]
[1746571744260,0.2079841,96166.0,96165.0,0.5016]
[1746571745251,0.2079841,96166.0,96165.0,0.5036]
[1746571746161,0.5687841,96166.0,96165.0,0.5036]
[1746571746362,0.2079841,96166.0,96165.0,0.5036]
[1746571747456,0.5687841,96166.0,96165.0,0.5036]
[1746571748165,0.5687841,96166.0,96165.0,0.7115862]
[1746571748863,0.3608,96166.0,96165.0,0.7115862]
[1746571749063,0.5687841,96166.0,96165.0,0.7115862]
[1746571749264,0.3608,96166.0,96165.0,0.7115862]
[1746571749964,0.5687841,96166.0,96165.0,0.7115862]
[1746571750166,0.2079841,96166.0,96165.0,0.7115862]
[1746571750362,0.0519905,96177.0,96165.0,0.5036]
[1746571750556,0.259954,96179.0,96178.0,0.2079559]
[1746571751166,0.259954,96179.0,96178.0,0.3859559]
[1746571751370,0.259954,96179.0,96178.0,0.178]
[1746571751868,0.413954,96179.0,96178.0,0.4827]
[1746571752264,0.568854,96179.0,96178.0,0.4827]
[1746571753253,0.2079529,96181.0,96178.0,0.4827]
[1746571753458,0.2079529,96181.0,96180.0,0.2599374]
[1746571754063,0.2079529,96181.0,96180.0,0.3859495]
[1746571757868,0.2079529,96181.0,96180.0,0.178]
[1746571758466,0.2079529,96181.0,96180.0,0.4943]
[1746571759069,0.5687529,96181.0,96180.0,0.178]
[1746571759266,0.2079711,96172.0,96162.0,0.0111816]
[1746571759467,0.2080057,96156.0,96147.0,0.0535663]
[1746571759667,0.5688057,96156.0,96155.0,0.10000008]
[1746571759876,0.5688057,96156.0,96155.0,0.01135234]
[1746571760281,0.5688057,96156.0,96155.0,0.18935234]
[1746571760680,0.5688057,96156.0,96155.0,0.48525234]